fUSD/lending_fUSD_20250211
["ID","MTS","AMOUNT","RATE_DAILY","PERIOD"]
[352739915,1739283112183,-500.0,0.00012465,2]
[352739916,1739283112193,-445.57289345,0.00012465,2]
[352739917,1739283112203,-500.0,0.00012465,2]
[352739918,1739283112213,-500.0,0.00012465,2]
[352739919,1739283112223,-999.07,0.00012465,2]
[352739920,1739283112233,-961.83,0.00012465,2]
[352739921,1739283112243,-932.98,0.00012465,2]
[352739922,1739283112252,-500.0,0.00012465,2]
[352739923,1739283112263,-500.0,0.00012465,2]
[352739924,1739283112273,-662.81,0.00012465,2]
[352739925,1739283112283,-541.66,0.00012465,2]
[352739926,1739283112293,-722.67,0.00012465,2]
[352739927,1739283112303,-500.0,0.00012465,2]
[352739928,1739283112314,-500.0,0.00012465,2]
[352739929,1739283112324,-500.0,0.00012465,2]
[352739930,1739283112335,-500.0,0.00012465,2]
[352739931,1739283112345,-1030.45,0.00012465,2]
[352739932,1739283112356,-835.87,0.00012465,2]
[352739933,1739283112367,-750.85,0.00012465,2]
[352739934,1739283112377,-500.0,0.00012465,2]
[352739935,1739283112387,-520.75804884,0.00012465,2]
[352739936,1739283112397,-500.0,0.00012465,2]
[352739937,1739283112407,-500.0,0.00012465,2]
[352739938,1739283112418,-500.0,0.00012465,2]
[352739939,1739283112428,-500.0,0.00012465,2]
[352739940,1739283112438,-500.0,0.00012465,2]
[352739941,1739283112448,-1038.04,0.00012465,2]
[352739942,1739283112459,-655.85,0.00012465,2]
[352739943,1739283112469,-500.0,0.00012465,2]
[352739944,1739283112479,-626.7,0.00012465,2]
[352739945,1739283112490,-500.0,0.00012465,2]
[352739946,1739283112500,-500.0,0.00012465,2]
[352739947,1739283112510,-581.18,0.00012465,2]
[352739948,1739283112520,-650.34,0.00012465,2]
[352739949,1739283112531,-500.0,0.00012465,2]
[352739950,1739283112541,-557.62,0.00012465,2]
[352739951,1739283112551,-1181.79,0.00012465,2]
[352739952,1739283112561,-552.27,0.00012465,2]
[352739953,1739283112571,-982.11,0.00012465,2]
[352739954,1739283112582,-637.32,0.00012465,2]
[352739955,1739283112592,-500.0,0.00012465,2]
[352739956,1739283112603,-500.0,0.00012465,2]
[352739957,1739283112613,-500.0,0.00012465,2]
[352739958,1739283112624,-621.63,0.00012465,2]
[352739959,1739283112637,-720.74,0.00012465,2]
[352739960,1739283112646,-500.0,0.00012465,2]
[352739961,1739283112656,-756.12,0.00012465,2]
[352739962,1739283112667,-540.21,0.00012465,2]
[352739963,1739283112676,-1099.61,0.00012465,2]
[352739964,1739283112686,-543.05,0.00012465,2]
[352739965,1739283112697,-735.96,0.00012465,2]
[352739966,1739283112706,-1136.7,0.00012465,2]
[352739967,1739283112717,-500.0,0.00012465,2]
[352739968,1739283112727,-500.0,0.00012465,2]
[352739969,1739283112738,-875.16,0.00012465,2]
[352739970,1739283112748,-580.72,0.00012465,2]
[352739971,1739283112758,-500.0,0.00012465,2]
[352739972,1739283112769,-1187.47,0.00012465,2]
[352739973,1739283112779,-1053.93,0.00012465,2]
[352739974,1739283112790,-635.88,0.00012465,2]
[352739975,1739283112989,-683.09,0.00012465,2]
[352739976,1739283113000,-1017.56,0.00012465,2]
[352739977,1739283113010,-500.0,0.00012465,2]
[352739978,1739283113020,-1174.81,0.00012465,2]
[352739979,1739283113029,-500.0,0.00012465,2]
[352739980,1739283113039,-641.21,0.00012465,2]
[352739981,1739283113049,-515.4,0.00012465,2]
[352739982,1739283113059,-811.4,0.00012465,2]
[352739983,1739283113068,-500.0,0.00012465,2]
[352739984,1739283113078,-2279.79,0.00012465,2]
[352739985,1739283113089,-500.0,0.00012465,2]
[352739986,1739283113099,-1026.36,0.00012465,2]
[352739987,1739283113109,-422.33694019,0.00012465,2]
[352739988,1739283113119,-544.63,0.00012465,2]
[352739989,1739283113128,-1181.86,0.00012465,2]
[352739990,1739283113138,-678.67,0.00012465,2]
[352739991,1739283113148,-1235.55,0.00012465,2]
[352739992,1739283113158,-500.0,0.00012465,2]
[352739993,1739283113168,-500.0,0.00012465,2]
[352739994,1739283113178,-2015.94,0.00012465,2]
[352739995,1739283113188,-638.72,0.00012465,2]
[352739996,1739283113197,-500.0,0.00012465,2]
[352739997,1739283113207,-884.07,0.00012465,2]
[352739998,1739283113216,-1344.05,0.00012465,2]
[352739999,1739283113226,-500.0,0.00012465,2]
[352740000,1739283113236,-500.0,0.00012465,2]
[352740001,1739283113245,-1667.76,0.00012465,2]
[352740002,1739283113255,-500.0,0.00012465,2]
[352740003,1739283113265,-515.7,0.00012465,2]
[352740004,1739283113275,-522.2,0.00012465,2]
[352740005,1739283113285,-1113.72,0.00012465,2]
[352740006,1739283113294,-500.0,0.00012465,2]
[352740007,1739283113303,-757.59,0.00012465,2]
[352740008,1739283113313,-1179.03,0.00012465,2]
[352740009,1739283113323,-1282.85,0.00012465,2]
[352740010,1739283113333,-808.33,0.00012465,2]
[352740011,1739283113343,-1795.37,0.00012465,2]
[352740012,1739283113353,-1850.76,0.00012465,2]
[352740013,1739283113363,-603.62,0.00012465,2]
[352740014,1739283113372,-500.0,0.00012465,2]
[352740015,1739283113382,-1151.05,0.00012465,2]
[352740016,1739283113392,-1119.24,0.00012465,2]
[352740017,1739283113401,-500.0,0.00012465,2]
[352740018,1739283113411,-1347.78,0.00012465,2]
[352740019,1739283113420,-819.33,0.00012465,2]
[352740020,1739283113430,-1536.44,0.00012465,2]
[352740021,1739283113439,-892.03,0.00012465,2]
[352740022,1739283113449,-2017.38,0.00012465,2]
[352740023,1739283113459,-948.75,0.00012465,2]
[352740024,1739283113468,-526.05,0.00012465,2]
[352740025,1739283113478,-582.46,0.00012465,2]
[352740026,1739283113487,-683.75,0.00012465,2]
[352740027,1739283113497,-657.71,0.00012465,2]
[352740028,1739283113507,-2105.16,0.00012465,2]
[352740029,1739283113517,-1725.88,0.00012465,2]
[352740030,1739283113527,-500.0,0.00012465,2]
[352740031,1739283113537,-634.23,0.00012465,2]
[352740032,1739283113547,-582.27,0.00012465,2]
[352740033,1739283113557,-1375.79,0.00012465,2]
[352740034,1739283113567,-1848.33,0.00012465,2]
[352740035,1739283113577,-500.0,0.00012465,2]
[352740036,1739283113588,-853.65,0.00012465,2]
[352740037,1739283113598,-500.0,0.00012465,2]
[352740038,1739283113607,-1602.84,0.00012465,2]
[352740039,1739283113617,-1126.45,0.00012465,2]
[352740040,1739283113627,-500.0,0.00012465,2]
[352740041,1739283113639,-1623.28,0.00012465,2]
[352740042,1739283113649,-1955.0,0.00012465,2]
[352740043,1739283113659,-1095.96,0.00012465,2]
[352740044,1739283113669,-1427.46,0.00012465,2]
[352740045,1739283113680,-733.7,0.00012465,2]
[352740046,1739283113690,-500.0,0.00012465,2]
[352740047,1739283113699,-636.24,0.00012465,2]
[352740048,1739283113712,-1892.51,0.00012465,2]
[352740049,1739283113722,-500.0,0.00012465,2]
[352740050,1739283113732,-507.93,0.00012465,2]
[352740051,1739283113741,-1207.29,0.00012465,2]
[352740052,1739283113751,-1791.03,0.00012465,2]
[352740053,1739283113761,-1757.72,0.00012465,2]
[352740054,1739283113771,-1102.03,0.00012465,2]
[352740055,1739283113780,-500.0,0.00012465,2]
[352740056,1739283113790,-713.64,0.00012465,2]
[352740057,1739283113801,-4488.97,0.00012465,2]
[352740058,1739283113810,-1078.79,0.00012465,2]
[352740059,1739283113821,-1189.98,0.00012465,2]
[352740060,1739283113830,-2171.34,0.00012465,2]
[352740061,1739283113840,-2231.76,0.00012465,2]
[352740062,1739283113850,-3213.91,0.00012465,2]
[352740063,1739283113859,-1985.57,0.00012465,2]
[352740064,1739283113869,-500.0,0.00012465,2]
[352740065,1739283113879,-473.08,0.00012465,2]
[352740066,1739283113889,-2042.81,0.00012465,2]
[352740067,1739283113899,-2233.07,0.00012465,2]
[352740068,1739283113909,-1475.61,0.00012465,2]
[352740069,1739283113918,-810.69,0.00012465,2]
[352740070,1739283113928,-2371.13,0.00012465,2]
[352740071,1739283113937,-500.0,0.00012465,2]
[352740072,1739283113947,-700.09,0.00012465,2]
[352740073,1739283113957,-1214.76,0.00012465,2]
[352740074,1739283113966,-2171.63,0.00012465,2]
[352740075,1739283113975,-2387.02,0.00012465,2]
[352740076,1739283113986,-620.08,0.00012465,2]
[352740077,1739283113995,-2340.95,0.00012465,2]
[352740078,1739283114006,-1886.51,0.00012465,2]
[352740079,1739283114015,-5444.75,0.00012465,2]
[352740080,1739283114025,-2886.17,0.00012465,2]
[352740081,1739283114035,-727.8,0.00012465,2]
[352740082,1739283114045,-707.04,0.00012465,2]
[352740083,1739283114055,-2310.94,0.00012465,2]
[352740084,1739283114064,-2343.44,0.00012465,2]
[352740085,1739283114075,-937.33,0.00012465,2]
[352740086,1739283114084,-1158.26,0.00012465,2]
[352740087,1739283114095,-670.35,0.00012465,2]
[352740088,1739283114106,-2558.39,0.00012465,2]
[352740089,1739283114118,-500.0,0.00012465,2]
[352740090,1739283114128,-620.78,0.00012465,2]
[352740091,1739283114138,-2007.68,0.00012465,2]
[352740092,1739283114148,-2648.76,0.00012465,2]
[352740093,1739283114158,-2171.75,0.00012465,2]
[352740094,1739283114168,-2434.45,0.00012465,2]
[352740095,1739283114178,-731.57,0.00012465,2]
[352740096,1739283114187,-2583.49,0.00012465,2]
[352740097,1739283114197,-2031.5,0.00012465,2]
[352740098,1739283114207,-500.0,0.00012465,2]
[352740099,1739283114217,-3062.38,0.00012465,2]
[352740100,1739283114227,-1845.16,0.00012465,2]
[352740101,1739283114237,-3061.99,0.00012465,2]
[352740102,1739283114247,-2068.15,0.00012465,2]
[352740103,1739283114258,-1009.34,0.00012465,2]
[352740104,1739283114267,-2900.54,0.00012465,2]
[352740105,1739283114278,-2626.43,0.00012465,2]
[352740106,1739283114288,-500.0,0.00012465,2]
[352740107,1739283114297,-2213.47,0.00012465,2]
[352740108,1739283114306,-1085.29,0.00012465,2]
[352740109,1739283114316,-2309.34,0.00012465,2]
[352740110,1739283114325,-7282.99,0.00012465,2]
[352740111,1739283114335,-1952.41,0.00012465,2]
[352740112,1739283114345,-701.48,0.00012465,2]
[352740113,1739283114354,-500.0,0.00012465,2]
[352740114,1739283114364,-1931.94,0.00012465,2]
[352740115,1739283114374,-500.0,0.00012465,2]
[352740116,1739283114384,-5326.26,0.00012465,2]
[352740117,1739283114394,-500.0,0.00012465,2]
[352740118,1739283114403,-3327.15,0.00012465,2]
[352740119,1739283114413,-1259.82,0.00012465,2]
[352740120,1739283114423,-500.0,0.00012465,2]
[352740121,1739283114433,-667.96,0.00012465,2]
[352740122,1739283114443,-500.0,0.00012465,2]
[352740123,1739283114454,-3450.17,0.00012465,2]
[352740124,1739283114464,-500.0,0.00012465,2]
[352740125,1739283114474,-1704.66,0.00012465,2]
[352740126,1739283114483,-500.0,0.00012465,2]
[352740127,1739283114493,-500.0,0.00012465,2]
[352740128,1739283114503,-2127.38,0.00012465,2]
[352740129,1739283114512,-500.0,0.00012465,2]
[352740130,1739283114522,-1476.79,0.00012465,2]
[352740131,1739283114531,-889.84,0.00012465,2]
[352740132,1739283114541,-1839.16,0.00012465,2]
[352740133,1739283114550,-2565.16,0.00012465,2]
[352740134,1739283114560,-2467.78,0.00012465,2]
[352740135,1739283114570,-500.0,0.00012465,2]
[352740136,1739283114580,-1657.8,0.00012465,2]
[352740137,1739283114591,-683.49,0.00012465,2]
[352740138,1739283114601,-500.0,0.00012465,2]
[352740139,1739283114611,-1036.17,0.00012465,2]
[352740140,1739283114620,-2953.99,0.00012465,2]
[352740141,1739283114633,-500.0,0.00012465,2]
[352740142,1739283114644,-2380.39,0.00012465,2]
[352740143,1739283114654,-1433.77,0.00012465,2]
[352740144,1739283114663,-1071.62,0.00012465,2]
[352740145,1739283114674,-1274.15,0.00012465,2]
[352740146,1739283114684,-500.0,0.00012465,2]
[352740147,1739283114693,-1027.27,0.00012465,2]
[352740148,1739283114703,-855.01,0.00012465,2]
[352740149,1739283114713,-1213.71,0.00012465,2]
[352740150,1739283114723,-2875.82,0.00012465,2]
[352740151,1739283114733,-727.11,0.00012465,2]
[352740152,1739283114743,-500.0,0.00012465,2]
[352740153,1739283114752,-713.14,0.00012465,2]
[352740154,1739283114762,-2037.92,0.00012465,2]
[352740155,1739283114772,-2384.33,0.00012465,2]
[352740156,1739283114781,-1000.0,0.000125,2]
[352740157,1739283114791,-500.0,0.00012504,2]
[352740158,1739283114800,-500.0,0.00012504,2]
[352740159,1739283114810,-500.0,0.00012504,2]
[352740160,1739283114819,-152.0,0.00012519,4]
[352740161,1739283114829,-524.64,0.00012595,2]
[352740162,1739283114839,-1114.15,0.00012596,2]
[352740163,1739283114849,-1907.79,0.00012596,2]
[352740164,1739283114859,-500.0,0.00012596,2]
[352740165,1739283114869,-2042.7,0.00012596,2]
[352740166,1739283114879,-2608.79,0.00012596,2]
[352740167,1739283114888,-500.0,0.00012602,2]
[352740168,1739283114898,-500.0,0.00012602,2]
[352740169,1739283114908,-500.0,0.00012602,2]
[352740170,1739283114917,-545.31,0.00012602,2]
[352740171,1739283114927,-623.89,0.00012602,2]
[352740172,1739283114936,-2289.514115,0.00012602,2]
[352740173,1739283114947,-160.739921,0.00012602,2]
[352740174,1739283114956,-155.509798,0.00012602,2]
[352740175,1739283114966,-912.071354,0.00012602,2]
[352740176,1739283114975,-562.39,0.00012602,2]
[352740177,1739283114985,-1335.42,0.00012602,2]
[352740178,1739283114995,-500.0,0.00012602,2]
[352740179,1739283115004,-500.0,0.00012602,2]
[352740180,1739283115014,-500.0,0.00012602,2]
[352740181,1739283115024,-500.0,0.00012602,2]
[352740182,1739283115034,-1026.73,0.00012602,2]
[352740183,1739283115043,-500.0,0.00012602,2]
[352740184,1739283115054,-1291.73,0.00012602,2]
[352740185,1739283115064,-500.0,0.00012602,2]
[352740186,1739283115074,-1006.21,0.00012602,2]
[352740187,1739283115083,-500.0,0.00012602,2]
[352740188,1739283115095,-654.08,0.00012602,2]
[352740189,1739283115106,-500.0,0.00012602,2]
[352740190,1739283115116,-500.0,0.00012602,2]
[352740191,1739283115126,-500.0,0.00012602,2]
[352740192,1739283115135,-648.91,0.00012602,2]
[352740193,1739283115146,-829.91,0.00012602,2]
[352740194,1739283115155,-1283.05,0.00012602,2]
[352740195,1739283115165,-627.22,0.00012602,2]
[352740196,1739283115174,-784.62,0.00012602,2]
[352740197,1739283115184,-500.0,0.00012602,2]
[352740198,1739283115194,-500.0,0.00012602,2]
[352740199,1739283115203,-1049.93,0.00012602,2]
[352740200,1739283115212,-500.0,0.00012602,2]
[352740201,1739283115222,-656.24,0.00012602,2]
[352740202,1739283115231,-500.0,0.00012602,2]
[352740203,1739283115240,-717.49,0.00012602,2]
[352740204,1739283115250,-750.73,0.00012602,2]
[352740205,1739283115259,-899.58,0.00012602,2]
[352740206,1739283115269,-500.0,0.00012602,2]
[352740207,1739283115279,-951.35,0.00012602,2]
[352740208,1739283115289,-500.0,0.00012602,2]
[352740209,1739283115298,-1059.29,0.00012602,2]
[352740210,1739283115307,-1079.43,0.00012602,2]
[352740211,1739283115317,-771.17,0.00012602,2]
[352740212,1739283115327,-500.0,0.00012602,2]
[352740213,1739283115404,-621.59,0.00012602,2]
[352740214,1739283115414,-500.0,0.00012602,2]
[352740215,1739283115424,-500.0,0.00012602,2]
[352740216,1739283115434,-772.38,0.00012602,2]
[352740217,1739283115443,-637.38,0.00012602,2]
[352740218,1739283115452,-564.18,0.00012602,2]
[352740219,1739283115462,-500.0,0.00012602,2]
[352740220,1739283115471,-562.5,0.00012602,2]
[352740221,1739283115480,-726.26,0.00012602,2]
[352740222,1739283115490,-500.0,0.00012602,2]
[352740223,1739283115499,-510.44443597,0.00012602,2]
[352740224,1739283115509,-500.0,0.00012602,2]
[352740225,1739283115518,-465.04613588,0.00012602,2]
[352740226,1739283115527,-657.71,0.00012602,2]
[352740227,1739283115536,-545.49,0.00012602,2]
[352740228,1739283115545,-947.55,0.00012602,2]
[352740229,1739283115555,-500.0,0.00012602,2]
[352740230,1739283115564,-500.0,0.00012602,2]
[352740231,1739283115574,-500.0,0.00012602,2]
[352740232,1739283115584,-500.0,0.00012602,2]
[352740233,1739283115595,-791.02,0.00012602,2]
[352740234,1739283115604,-594.78,0.00012602,2]
[352740235,1739283115613,-899.13,0.00012602,2]
[352740236,1739283115623,-723.56,0.00012602,2]
[352740237,1739283115635,-623.3,0.00012602,2]
[352740238,1739283115644,-500.0,0.00012602,2]
[352740239,1739283115653,-602.04,0.00012602,2]
[352740240,1739283115662,-634.43,0.00012602,2]
[352740241,1739283115673,-500.0,0.00012602,2]
[352740242,1739283115682,-689.47,0.00012602,2]
[352740243,1739283115692,-500.0,0.00012602,2]
[352740244,1739283115702,-500.0,0.00012602,2]
[352740245,1739283115712,-500.0,0.00012602,2]
[352740246,1739283115722,-500.0,0.00012602,2]
[352740247,1739283115731,-999.07,0.00012602,2]
[352740248,1739283115740,-2000.0,0.00012602,2]
[352740249,1739283115750,-961.83,0.00012602,2]
[352740250,1739283115759,-932.98,0.00012602,2]
[352740251,1739283115768,-500.0,0.00012602,2]
[352740252,1739283115777,-168.6371036,0.00012602,2]
[352740253,1739283115786,-662.81,0.00012602,2]
[352740254,1739283115795,-541.66,0.00012602,2]
[352740255,1739283115805,-722.67,0.00012602,2]
[352740256,1739283115815,-500.0,0.00012602,2]
[352740257,1739283115824,-500.0,0.00012602,2]
[352740258,1739283115834,-500.0,0.00012602,2]
[352740259,1739283115845,-500.0,0.00012602,2]
[352740260,1739283115855,-1030.45,0.00012602,2]
[352740261,1739283115865,-835.87,0.00012602,2]
[352740262,1739283115875,-750.85,0.00012602,2]
[352740263,1739283115884,-353.66786709,0.00012602,2]
[352740264,1739283115894,-500.0,0.00012602,2]
[352740265,1739283115903,-500.0,0.00012602,2]
[352740266,1739283115913,-500.0,0.00012602,2]
[352740267,1739283115923,-500.0,0.00012602,2]
[352740268,1739283115933,-500.0,0.00012602,2]
[352740269,1739283115942,-1038.04,0.00012602,2]
[352740270,1739283115951,-655.85,0.00012602,2]
[352740271,1739283115961,-500.0,0.00012602,2]
[352740272,1739283115971,-626.7,0.00012602,2]
[352740273,1739283115980,-500.0,0.00012602,2]
[352740274,1739283115990,-500.0,0.00012602,2]
[352740275,1739283116000,-581.18,0.00012602,2]
[352740276,1739283116009,-650.34,0.00012602,2]
[352740277,1739283116018,-500.0,0.00012602,2]
[352740278,1739283116028,-557.62,0.00012602,2]
[352740279,1739283116038,-1181.79,0.00012602,2]
[352740280,1739283116048,-552.27,0.00012602,2]
[352740281,1739283116057,-982.11,0.00012602,2]
[352740282,1739283116067,-637.32,0.00012602,2]
[352740283,1739283116077,-500.0,0.00012602,2]
[352740284,1739283116088,-500.0,0.00012602,2]
[352740285,1739283116098,-500.0,0.00012602,2]
[352740286,1739283116108,-621.63,0.00012602,2]
[352740287,1739283116118,-720.74,0.00012602,2]
[352740288,1739283116128,-500.0,0.00012602,2]
[352740289,1739283116137,-756.12,0.00012602,2]
[352740290,1739283116147,-540.21,0.00012602,2]
[352740291,1739283116157,-1099.61,0.00012602,2]
[352740292,1739283116167,-543.05,0.00012602,2]
[352740293,1739283116176,-735.96,0.00012602,2]
[352740294,1739283116186,-1136.7,0.00012602,2]
[352740295,1739283116196,-500.0,0.00012602,2]
[352740296,1739283116206,-500.0,0.00012602,2]
[352740297,1739283116215,-875.16,0.00012602,2]
[352740298,1739283116224,-580.72,0.00012602,2]
[352740299,1739283116234,-500.0,0.00012602,2]
[352740300,1739283116244,-1187.47,0.00012602,2]
[352740301,1739283116254,-1053.93,0.00012602,2]
[352740302,1739283116263,-635.88,0.00012602,2]
[352740303,1739283116273,-683.09,0.00012602,2]
[352740304,1739283116283,-1017.56,0.00012602,2]
[352740305,1739283116292,-500.0,0.00012602,2]
[352740306,1739283116302,-1174.81,0.00012602,2]
[352740307,1739283116311,-500.0,0.00012602,2]
[352740308,1739283116321,-641.21,0.00012602,2]
[352740309,1739283116330,-515.4,0.00012602,2]
[352740310,1739283116341,-811.4,0.00012602,2]
[352740311,1739283116351,-500.0,0.00012602,2]
[352740312,1739283116360,-2279.79,0.00012602,2]
[352740313,1739283116369,-500.0,0.00012602,2]
[352740314,1739283116379,-1026.36,0.00012602,2]
[352740315,1739283116388,-544.63,0.00012602,2]
[352740316,1739283116397,-1181.86,0.00012602,2]
[352740317,1739283116407,-678.67,0.00012602,2]
[352740318,1739283116416,-1235.55,0.00012602,2]
[352740319,1739283116426,-304.5,0.00012602,2]
[352740320,1739283116435,-500.0,0.00012602,2]
[352740321,1739283116445,-2015.94,0.00012602,2]
[352740322,1739283116455,-638.72,0.00012602,2]
[352740323,1739283116464,-500.0,0.00012602,2]
[352740324,1739283116473,-884.07,0.00012602,2]
[352740325,1739283116483,-1344.05,0.00012602,2]
[352740326,1739283116493,-500.0,0.00012602,2]
[352740327,1739283116503,-157.862353,0.00012602,2]
[352740328,1739283116512,-500.0,0.00012602,2]
[352740329,1739283116522,-1667.76,0.00012602,2]
[352740330,1739283116531,-500.0,0.00012602,2]
[352740331,1739283116541,-515.7,0.00012602,2]
[352740332,1739283116550,-522.2,0.00012602,2]
[352740333,1739283116560,-1113.72,0.00012602,2]
[352740334,1739283116569,-500.0,0.00012602,2]
[352740335,1739283116579,-757.59,0.00012602,2]
[352740336,1739283116590,-1179.03,0.00012602,2]
[352740337,1739283116599,-1282.85,0.00012602,2]
[352740338,1739283116609,-808.33,0.00012602,2]
[352740339,1739283116619,-1795.37,0.00012602,2]
[352740340,1739283116631,-1850.76,0.00012602,2]
[352740341,1739283116642,-603.62,0.00012602,2]
[352740342,1739283116652,-500.0,0.00012602,2]
[352740343,1739283116662,-1151.05,0.00012602,2]
[352740344,1739283116673,-1119.24,0.00012602,2]
[352740345,1739283116682,-500.0,0.00012602,2]
[352740346,1739283116692,-1347.78,0.00012602,2]
[352740347,1739283116701,-819.33,0.00012602,2]
[352740348,1739283116711,-1536.44,0.00012602,2]
[352740349,1739283116720,-892.03,0.00012602,2]
[352740350,1739283116730,-2017.38,0.00012602,2]
[352740351,1739283116740,-948.75,0.00012602,2]
[352740352,1739283116749,-526.05,0.00012602,2]
[352740353,1739283116758,-582.46,0.00012602,2]
[352740354,1739283116768,-683.75,0.00012602,2]
[352740355,1739283116777,-657.71,0.00012602,2]
[352740356,1739283116787,-2105.16,0.00012602,2]
[352740357,1739283116797,-1725.88,0.00012602,2]
[352740358,1739283116807,-500.0,0.00012602,2]
[352740359,1739283116816,-634.23,0.00012602,2]
[352740360,1739283116826,-582.27,0.00012602,2]
[352740361,1739283116835,-1375.79,0.00012602,2]
[352740362,1739283116846,-1848.33,0.00012602,2]
[352740363,1739283116856,-500.0,0.00012602,2]
[352740364,1739283116866,-853.65,0.00012602,2]
[352740365,1739283116875,-500.0,0.00012602,2]
[352740366,1739283116885,-1602.84,0.00012602,2]
[352740367,1739283116894,-1126.45,0.00012602,2]
[352740368,1739283116903,-500.0,0.00012602,2]
[352740369,1739283116914,-1623.28,0.00012602,2]
[352740370,1739283116923,-1955.0,0.00012602,2]
[352740371,1739283116933,-1095.96,0.00012602,2]
[352740372,1739283116944,-1427.46,0.00012602,2]
[352740373,1739283116954,-733.7,0.00012602,2]
[352740374,1739283116964,-500.0,0.00012602,2]
[352740375,1739283116974,-636.24,0.00012602,2]
[352740376,1739283116984,-1892.51,0.00012602,2]
[352740377,1739283116994,-500.0,0.00012602,2]
[352740378,1739283117004,-507.93,0.00012602,2]
[352740379,1739283117015,-1207.29,0.00012602,2]
[352740380,1739283117025,-1791.03,0.00012602,2]
[352740381,1739283117035,-1757.72,0.00012602,2]
[352740382,1739283117045,-1102.03,0.00012602,2]
[352740383,1739283117055,-500.0,0.00012602,2]
[352740384,1739283117064,-713.64,0.00012602,2]
[352740385,1739283117075,-4488.97,0.00012602,2]
[352740386,1739283117085,-1078.79,0.00012602,2]
[352740387,1739283117096,-1189.98,0.00012602,2]
[352740388,1739283117107,-2171.34,0.00012602,2]
[352740389,1739283117116,-2231.76,0.00012602,2]
[352740390,1739283117126,-3213.91,0.00012602,2]
[352740391,1739283117136,-1985.57,0.00012602,2]
[352740392,1739283117146,-500.0,0.00012602,2]
[352740393,1739283117156,-2233.07,0.00012602,2]
[352740394,1739283117166,-2042.81,0.00012602,2]
[352740395,1739283117175,-1475.61,0.00012602,2]
[352740396,1739283117185,-810.69,0.00012602,2]
[352740397,1739283117194,-500.0,0.00012602,2]
[352740398,1739283117203,-2371.13,0.00012602,2]
[352740399,1739283117212,-700.09,0.00012602,2]
[352740400,1739283117223,-1214.76,0.00012602,2]
[352740401,1739283117232,-2171.63,0.00012602,2]
[352740402,1739283117242,-2387.02,0.00012602,2]
[352740403,1739283117251,-620.08,0.00012602,2]
[352740404,1739283117260,-1886.51,0.00012602,2]
[352740405,1739283117270,-5444.75,0.00012602,2]
[352740406,1739283117279,-2340.95,0.00012602,2]
[352740407,1739283117289,-2886.17,0.00012602,2]
[352740408,1739283117298,-727.8,0.00012602,2]
[352740409,1739283117308,-707.04,0.00012602,2]
[352740410,1739283117318,-2310.94,0.00012602,2]
[352740411,1739283117327,-2343.44,0.00012602,2]
[352740412,1739283117338,-937.33,0.00012602,2]
[352740413,1739283117347,-1158.26,0.00012602,2]
[352740414,1739283117357,-670.35,0.00012602,2]